Workbook

Sheet Sheet1
A1: USDA - RUS | C1: Title of Information Document | I1: OMB No.
J2: 0572-0117
A3: SUMMARY OF INFORMATION COLLECTION | D3: 7 CFR 1794, Environmental Policies and Procedures | I3: Date Prepared
J4: 2013-05-21
A5: INSTRUCTIONS: | E5: > | F5: (f) TOTAL | H5: (h) TOTAL | J5: (k) TOTAL
A6: Use this form when a single information collection document involves multiple reporting and | E6: > | F6: - | G6: = (e) Average | H6: - | I6: = (g) Average | J6: - | K6: = (j) Average
A7: recordkeeping requirements. | E7: > | F7: (d) TOTAL | H7: (f) TOTAL | J7: (i) TOTAL
A8: IDENTIFICATION OF REPORTING AND RECORDKEEPPING REQUIREMENTS | G8: ANNUAL BURDEN
C9: FORM | F9: REPORTS | J9: RECORDS
C10: NO(s) | D10: NO. OF | E10: NO. OF | F10: TOTAL | G10: HOURS | H10: TOTAL | I10: NO. OF | J10: ANNUAL | K10: TOTAL
A11: SECTION OF | C11: (If "none" | D11: RESPON- | E11: RESPONSES | F11: ANNUAL | G11: PER | H11: HOURS | I11: RECORD- | J11: HOURS PER | K11: RECORD-
A12: REGULATIONS | B12: DESCRIPTION | C12: so state) | D12: DENTS | E12: PER | F12: RESPONSES | G12: RESPONSE | H12: (Col. f & g) | I12: KEEPERS | J12: RECORD- | K12: KEEPING
E13: RESPON- | F13: (Col. d & e) | J13: KEEPER | K13: HOURS
E14: DENT | K14: (Col. i & j)
A15: (a) | B15: (b) | C15: (c) | D15: (d) | E15: (e) | F15: (f) | G15: (g) | H15: (h) | I15: (i) | J15: (j) | K15: (k)
A17: Electric
A18: 1794.21(b) | B18: Categorically excluded proposals w/out an ER | D18: 400 | E18: 4 | F18: =SUM(D18*E18) -> 1,600 | G18: 10 | H18: =SUM(F18*G18) -> 16,000
A19: 1794.22(a) | B19: Categorically excluded proposals requiring an ER | D19: 300 | E19: 2 | F19: =SUM(D19*E19) -> 600 | G19: 200 | H19: =SUM(F19*G19) -> 120,000
A20: 1794.23 | B20: Proposals normally requiring an EA | D20: 10 | E20: 1 | F20: =SUM(D20*E20) -> 10 | G20: 355 | H20: =SUM(F20*G20) -> 3,550
A21: 1794.24 | B21: Proposals normally requiring an EA with Scoping | D21: 2 | E21: 1 | F21: =SUM(D21*E21) -> 2 | G21: 3,150 | H21: =SUM(F21*G21) -> 6,300
A22: 1794.25 | B22: Proposals normally requiring an EIS | D22: 6 | E22: 1 | F22: =SUM(D22*E22) -> 6 | G22: 4,160 | H22: =SUM(F22*G22) -> 24,960
A24: Telecommunications
A25: 1792.22(a) | B25: Categorically excluded proposals requiring an ER | D25: 100 | E25: 1 | F25: =SUM(D25*E25) -> 100 | G25: 385 | H25: =SUM(F25*G25) -> 38,500
A27: Water & Environmental Programs
A28: 1794.21(c ) | B28: Categorically excluded proposals w/out an ER | D28: 150 | E28: 1 | F28: =SUM(D28*E28) -> 150 | G28: 11 | H28: =SUM(F28*G28) -> 1,650
A29: 1794.22(b) | B29: Categorically excluded proposals requiring an ER | D29: 250 | E29: 1 | F29: =SUM(D29*E29) -> 250 | G29: 200 | H29: =SUM(F29*G29) -> 50,000
A30: 1794.23 | B30: Proposals normally requiring an EA | D30: 600 | E30: 1 | F30: =SUM(D30*E30) -> 600 | G30: 355 | H30: =SUM(F30*G30) -> 213,000
A31: 1794.25 | B31: Proposals normally requiring an EIS | D31: 3 | E31: 1 | F31: =SUM(D31*E31) -> 3 | G31: 4,160 | H31: =SUM(F31*G31) -> 12,480
D42: 1,339 | F42: =SUM(F18:F41) -> 3,321 | H42: 486,440
A43: RUS Form 36 (07-91) | J43: Page __1__ of __1__

Sheet Sheet2

Sheet Sheet3
